fUSD/lending_fUSD_20260513
["ID","MTS","AMOUNT","RATE_DAILY","PERIOD"]
[422189209,1778665855000,-938.36,0.00038356,2]
[422189248,1778665855000,-500.0,0.00038356,2]
[422189244,1778665855000,-500.0,0.00038356,2]
[422189247,1778665855000,-500.0,0.00038356,2]
[422189249,1778665855000,-500.0,0.00038356,2]
[422189250,1778665855000,-500.0,0.00038356,2]
[422189245,1778665855000,-500.0,0.00038356,2]
[422189243,1778665855000,-500.0,0.00038356,2]
[422189252,1778665855000,-500.0,0.00038356,2]
[422189263,1778665855000,-500.0,0.00038356,2]
[422189262,1778665855000,-500.0,0.00038356,2]
[422189264,1778665855000,-500.0,0.00038356,2]
[422189254,1778665855000,-500.0,0.00038356,2]
[422189251,1778665855000,-500.0,0.00038356,2]
[422189253,1778665855000,-500.0,0.00038356,2]
[422189261,1778665855000,-500.0,0.00038356,2]
[422189259,1778665855000,-500.0,0.00038356,2]
[422189257,1778665855000,-500.0,0.00038356,2]
[422189258,1778665855000,-500.0,0.00038356,2]
[422189255,1778665855000,-500.0,0.00038356,2]
[422189256,1778665855000,-500.0,0.00038356,2]
[422189260,1778665855000,-500.0,0.00038356,2]
[422189272,1778665855000,-500.0,0.00038356,2]
[422189273,1778665855000,-500.0,0.00038356,2]
[422189266,1778665855000,-506.97378767,0.00038356,2]
[422189268,1778665855000,-500.0,0.00038356,2]
[422189267,1778665855000,-501.3884401,0.00038356,7]
[422189208,1778665855000,-938.36,0.00038356,2]
[422189265,1778665855000,-500.0,0.00038356,2]
[422189271,1778665855000,-500.0,0.00038356,2]
[422189246,1778665855000,-575.20404045,0.00038356,2]
[422189242,1778665855000,-500.0,0.00038356,2]
[422189270,1778665855000,-500.0,0.00038356,2]
[422189241,1778665855000,-500.0,0.00038356,2]
[422189238,1778665855000,-500.0,0.00038356,2]
[422189215,1778665855000,-938.36,0.00038356,2]
[422189223,1778665855000,-500.0,0.00038356,2]
[422189211,1778665855000,-938.36,0.00038356,2]
[422189222,1778665855000,-500.0,0.00038356,2]
[422189212,1778665855000,-938.36,0.00038356,2]
[422189217,1778665855000,-500.0,0.00038356,2]
[422189213,1778665855000,-938.36,0.00038356,2]
[422189216,1778665855000,-938.4374828,0.00038356,2]
[422189219,1778665855000,-500.0,0.00038356,2]
[422189218,1778665855000,-500.0,0.00038356,2]
[422189220,1778665855000,-500.0,0.00038356,2]
[422189221,1778665855000,-500.0,0.00038356,2]
[422189225,1778665855000,-500.0,0.00038356,2]
[422189214,1778665855000,-938.36,0.00038356,2]
[422189227,1778665855000,-500.0,0.00038356,2]
[422189235,1778665855000,-500.0,0.00038356,2]
[422189239,1778665855000,-500.0,0.00038356,2]
[422189237,1778665855000,-500.0,0.00038356,2]
[422189230,1778665855000,-500.0,0.00038356,2]
[422189234,1778665855000,-500.0,0.00038356,2]
[422189233,1778665855000,-500.0,0.00038356,2]
[422189240,1778665855000,-500.0,0.00038356,2]
[422189232,1778665855000,-500.0,0.00038356,2]
[422189228,1778665855000,-500.0,0.00038356,2]
[422189236,1778665855000,-500.0,0.00038356,2]
[422189224,1778665855000,-500.0,0.00038356,2]
[422189226,1778665855000,-458.37215967,0.00038356,2]
[422189229,1778665855000,-500.0,0.00038356,2]
[422189231,1778665855000,-500.0,0.00038356,2]
[422189316,1778665856000,-500.0,0.00038356,2]
[422189315,1778665856000,-500.0,0.00038356,2]
[422189314,1778665856000,-500.0,0.00038356,2]
[422189310,1778665856000,-290.336006,0.00038356,7]
[422189311,1778665856000,-151.0,0.00038356,7]
[422189306,1778665856000,-374.212742,0.00038356,7]
[422189308,1778665856000,-290.336006,0.00038356,7]
[422189312,1778665856000,-500.0,0.00038356,2]
[422189307,1778665856000,-290.336006,0.00038356,7]
[422189313,1778665856000,-500.0,0.00038356,2]
[422189309,1778665856000,-290.336006,0.00038356,7]
[422189304,1778665856000,-374.212742,0.00038356,7]
[422189322,1778665856000,-500.0,0.00038356,2]
[422189320,1778665856000,-500.0,0.00038356,2]
[422189321,1778665856000,-500.0,0.00038356,2]
[422189318,1778665856000,-288.02930281,0.00038356,2]
[422189319,1778665856000,-500.0,0.00038356,2]
[422189323,1778665856000,-500.0,0.00038356,2]
[422189324,1778665856000,-500.0,0.00038356,2]
[422189333,1778665856000,-500.0,0.00038356,2]
[422189336,1778665856000,-500.0,0.00038356,2]
[422189327,1778665856000,-500.0,0.00038356,2]
[422189328,1778665856000,-500.0,0.00038356,2]
[422189330,1778665856000,-500.0,0.00038356,2]
[422189334,1778665856000,-500.0,0.00038356,2]
[422189302,1778665856000,-151.0,0.00038356,7]
[422189317,1778665856000,-500.0,0.00038356,2]
[422189305,1778665856000,-374.212742,0.00038356,7]
[422189283,1778665856000,-500.0,0.00038356,2]
[422189301,1778665856000,-151.0,0.00038356,7]
[422189329,1778665856000,-500.0,0.00038356,2]
[422189274,1778665856000,-500.0,0.00038356,2]
[422189275,1778665856000,-500.0,0.00038356,2]
[422189278,1778665856000,-500.0,0.00038356,2]
[422189276,1778665856000,-500.0,0.00038356,2]
[422189280,1778665856000,-500.0,0.00038356,2]
[422189291,1778665856000,-500.0,0.00038356,2]
[422189290,1778665856000,-500.0,0.00038356,2]
[422189292,1778665856000,-500.0,0.00038356,2]
[422189279,1778665856000,-500.0,0.00038356,2]
[422189282,1778665856000,-500.0,0.00038356,2]
[422189281,1778665856000,-500.0,0.00038356,2]
[422189294,1778665856000,-500.0,0.00038356,2]
[422189284,1778665856000,-500.0,0.00038356,2]
[422189289,1778665856000,-500.0,0.00038356,2]
[422189288,1778665856000,-500.0,0.00038356,2]
[422189285,1778665856000,-500.0,0.00038356,2]
[422189287,1778665856000,-500.0,0.00038356,2]
[422189293,1778665856000,-500.0,0.00038356,2]
[422189296,1778665856000,-500.0,0.00038356,2]
[422189295,1778665856000,-500.0,0.00038356,2]
[422189297,1778665856000,-500.0,0.00038356,2]
[422189299,1778665856000,-466.85306237,0.00038356,2]
[422189298,1778665856000,-500.0,0.00038356,2]
[422189300,1778665856000,-151.0,0.00038356,7]
[422189303,1778665856000,-374.212742,0.00038356,7]
[422189286,1778665856000,-500.0,0.00038356,2]
[422189335,1778665856000,-500.0,0.00038356,2]
[422189277,1778665856000,-500.0,0.00038356,2]
[422189325,1778665856000,-500.0,0.00038356,2]
[422189365,1778665856000,-155.14505,0.00038356,7]
[422189364,1778665856000,-151.0,0.00038356,7]
[422189369,1778665856000,-150.0,0.00038356,2]
[422189367,1778665856000,-1000.0,0.00038356,7]
[422189371,1778665856000,-150.0,0.00038356,2]
[422189366,1778665856000,-932.48183126,0.00038356,7]
[422189362,1778665856000,-1227.829878,0.00038356,7]
[422189368,1778665856000,-1000.0,0.00038356,7]
[422189372,1778665856000,-223.0,0.00038356,2]
[422189370,1778665856000,-157.0,0.00038356,2]
[422189376,1778665856000,-151.0,0.00038356,30]
[422189378,1778665856000,-9531.0662,0.00038475,2]
[422189377,1778665856000,-385.59,0.00038356,120]
[422189382,1778665856000,-415.45,0.00038511,120]
[422189385,1778665856000,-184.09,0.00038556,30]
[422189386,1778665856000,-40395.0,0.00038576,120]
[422189379,1778665856000,-40395.0,0.00038489,120]
[422189384,1778665856000,-16779.8314,0.00038542,30]
[422189380,1778665856000,-157.72297697,0.00038491,3]
[422189381,1778665856000,-82455.77416544,0.000385,2]
[422189383,1778665856000,-2245.4764,0.00038542,2]
[422189388,1778665856000,-415.45,0.00038611,120]
[422189387,1778665856000,-9531.0662,0.00038608,2]
[422189390,1778665856000,-415.45,0.00038711,120]
[422189389,1778665856000,-40395.0,0.00038663,120]
[422189391,1778665856000,-1100.0,0.00038721,7]
[422189392,1778665856000,-9531.0662,0.00038741,2]
[422189375,1778665856000,-151.0,0.00038356,30]
[422189373,1778665856000,-151.0,0.00038356,30]
[422189332,1778665856000,-500.0,0.00038356,2]
[422189363,1778665856000,-1227.829878,0.00038356,7]
[422189326,1778665856000,-500.0,0.00038356,2]
[422189331,1778665856000,-500.0,0.00038356,2]
[422189338,1778665856000,-500.0,0.00038356,2]
[422189346,1778665856000,-300.0,0.00038356,2]
[422189340,1778665856000,-500.0,0.00038356,2]
[422189342,1778665856000,-500.0,0.00038356,2]
[422189339,1778665856000,-500.0,0.00038356,2]
[422189341,1778665856000,-500.0,0.00038356,2]
[422189348,1778665856000,-300.0,0.00038356,2]
[422189337,1778665856000,-500.0,0.00038356,2]
[422189347,1778665856000,-300.0,0.00038356,2]
[422189345,1778665856000,-300.0,0.00038356,2]
[422189343,1778665856000,-500.0,0.00038356,2]
[422189374,1778665856000,-151.0,0.00038356,30]
[422189349,1778665856000,-300.0,0.00038356,2]
[422189344,1778665856000,-512.43107035,0.00038356,2]
[422189358,1778665856000,-300.0,0.00038356,2]
[422189359,1778665856000,-300.0,0.00038356,2]
[422189356,1778665856000,-300.0,0.00038356,2]
[422189353,1778665856000,-300.0,0.00038356,2]
[422189355,1778665856000,-300.0,0.00038356,2]
[422189361,1778665856000,-1227.829878,0.00038356,7]
[422189360,1778665856000,-159.83884682,0.00038356,2]
[422189352,1778665856000,-1227.829878,0.00038356,7]
[422189354,1778665856000,-300.0,0.00038356,2]
[422189351,1778665856000,-300.0,0.00038356,2]
[422189350,1778665856000,-300.0,0.00038356,2]
[422189357,1778665856000,-300.0,0.00038356,2]
[422189431,1778665857000,-1963.82627,0.00038837,28]
[422189436,1778665857000,-664.623136,0.00038837,30]
[422189437,1778665857000,-664.623136,0.00038837,30]
[422189427,1778665857000,-276.303252,0.00038837,30]
[422189430,1778665857000,-276.303247,0.00038837,30]
[422189428,1778665857000,-151.0,0.00038837,30]
[422189426,1778665857000,-276.303252,0.00038837,30]
[422189432,1778665857000,-1963.82627,0.00038837,28]
[422189429,1778665857000,-276.303252,0.00038837,30]
[422189425,1778665857000,-177.916808,0.00038837,30]
[422189435,1778665857000,-664.623136,0.00038837,30]
[422189434,1778665857000,-1963.82626248,0.00038837,28]
[422189433,1778665857000,-1963.82627,0.00038837,28]
[422189444,1778665857000,-1332.76441182,0.00039,120]
[422189440,1778665857000,-2000.0,0.000389,7]
[422189441,1778665857000,-415.45,0.00038911,120]
[422189443,1778665857000,-31292.29656827,0.00039,2]
[422189442,1778665857000,-40395.0,0.00038924,120]
[422189439,1778665857000,-9531.0662,0.00038873,2]
[422189446,1778665857000,-153.0,0.00039,2]
[422189445,1778665857000,-3111.34265575,0.00039,14]
[422189447,1778665857000,-20000.0,0.00039,7]
[422189449,1778665857000,-1707.40268815,0.00039,2]
[422189448,1778665857000,-20000.0,0.00039,9]
[422189451,1778665857000,-153.15555939,0.00039,2]
[422189455,1778665857000,-3200.0,0.00039,30]
[422189422,1778665857000,-177.916806,0.00038837,30]
[422189438,1778665857000,-664.623126,0.00038837,30]
[422189418,1778665857000,-267.55393,0.00038837,30]
[422189409,1778665857000,-151.0,0.00038837,30]
[422189420,1778665857000,-177.916806,0.00038837,30]
[422189398,1778665857000,-415.45,0.00038811,120]
[422189397,1778665857000,-266094.0,0.000388,30]
[422189396,1778665857000,-1000.0,0.00038774,120]
[422189393,1778665857000,-151.52998992,0.00038748,60]
[422189394,1778665857000,-40395.0,0.0003875,120]
[422189395,1778665857000,-157.72297697,0.00038765,3]
[422189399,1778665857000,-9584.70279639,0.00038834,2]
[422189401,1778665857000,-473.418041,0.00038837,30]
[422189402,1778665857000,-765.442738,0.00038837,30]
[422189403,1778665857000,-473.418041,0.00038837,30]
[422189400,1778665857000,-40395.0,0.00038837,120]
[422189410,1778665857000,-346.686202,0.00038837,30]
[422189408,1778665857000,-765.442743,0.00038837,30]
[422189421,1778665857000,-267.55393,0.00038837,30]
[422189407,1778665857000,-473.418046,0.00038837,30]
[422189456,1778665857000,-3400.0,0.00039,30]
[422189411,1778665857000,-346.686202,0.00038837,30]
[422189406,1778665857000,-765.442738,0.00038837,30]
[422189404,1778665857000,-765.442738,0.00038837,30]
[422189413,1778665857000,-346.686199,0.00038837,30]
[422189423,1778665857000,-267.553939,0.00038837,30]
[422189415,1778665857000,-449.088494,0.00038837,30]
[422189424,1778665857000,-177.916806,0.00038837,30]
[422189416,1778665857000,-449.088494,0.00038837,30]
[422189412,1778665857000,-346.686202,0.00038837,30]
[422189414,1778665857000,-449.088494,0.00038837,30]
[422189417,1778665857000,-449.088487,0.00038837,30]
[422189419,1778665857000,-267.55393,0.00038837,30]
[422189405,1778665857000,-473.418041,0.00038837,30]
[422189454,1778665857000,-3200.0,0.00039,30]
[422189450,1778665857000,-1652.97,0.00039,14]
[422189452,1778665857000,-154.91077428,0.00039,30]
[422189485,1778665857000,-187.879897,0.00039098,30]
[422189497,1778665857000,-40395.0,0.00039273,120]
[422189490,1778665857000,-415.45,0.00039111,120]
[422189494,1778665857000,-415.45,0.00039211,120]
[422189489,1778665857000,-263.298089,0.00039098,30]
[422189491,1778665857000,-1000.0,0.00039183,2]
[422189493,1778665857000,-1639.06,0.00039188,120]
[422189492,1778665857000,-40395.0,0.00039186,120]
[422189495,1778665857000,-154.18,0.00039243,120]
[422189498,1778665857000,-152.0,0.00039284,7]
[422189499,1778665857000,-415.45,0.00039311,120]
[422189500,1778665857000,-157.72297697,0.00039313,3]
[422189509,1778665857000,-1227.829878,0.00039317,7]
[422189487,1778665857000,-263.298087,0.00039098,30]
[422189502,1778665857000,-10008.0253,0.00039317,2]
[422189508,1778665857000,-151.0,0.00039317,30]
[422189507,1778665857000,-151.0,0.00039317,30]
[422189506,1778665857000,-151.0,0.00039317,30]
[422189505,1778665857000,-151.0,0.00039317,30]
[422189503,1778665857000,-1254.7903,0.00039317,2]
[422189510,1778665857000,-1227.829878,0.00039317,7]
[422189504,1778665857000,-1104.9744,0.00039317,2]
[422189512,1778665857000,-1227.829878,0.00039317,7]
[422189516,1778665857000,-171.3357043,0.00039322,120]
[422189459,1778665857000,-1260.76326855,0.00039,30]
[422189515,1778665857000,-412.9687174,0.00039322,120]
[422189511,1778665857000,-1227.829878,0.00039317,7]
[422189513,1778665857000,-151.0,0.00039317,30]
[422189501,1778665857000,-2001.9315,0.00039317,2]
[422189488,1778665857000,-263.298087,0.00039098,30]
[422189514,1778665857000,-151.4242103,0.00039322,120]
[422189486,1778665857000,-263.298087,0.00039098,30]
[422189496,1778665857000,-494.02,0.00039243,120]
[422189453,1778665857000,-3200.0,0.00039,30]
[422189457,1778665857000,-153.0,0.00039,2]
[422189462,1778665857000,-4426.20612201,0.00039,30]
[422189461,1778665857000,-4426.20612203,0.00039,30]
[422189460,1778665857000,-1260.76326855,0.00039,30]
[422189470,1778665857000,-40395.0,0.00039098,120]
[422189464,1778665857000,-706.3183,0.00039006,2]
[422189463,1778665857000,-4426.20612201,0.00039,30]
[422189471,1778665857000,-419.650515,0.00039098,30]
[422189466,1778665857000,-2245.4766,0.00039006,2]
[422189465,1778665857000,-9531.0672,0.00039006,2]
[422189467,1778665857000,-415.45,0.00039011,120]
[422189469,1778665857000,-157.72297697,0.00039039,3]
[422189458,1778665857000,-1260.76326856,0.00039,30]
[422189472,1778665857000,-419.650515,0.00039098,30]
[422189468,1778665857000,-40395.0,0.00039011,120]
[422189484,1778665857000,-151.0,0.00039098,30]
[422189479,1778665857000,-151.0,0.00039098,30]
[422189480,1778665857000,-257.204248,0.00039098,30]
[422189476,1778665857000,-257.204248,0.00039098,30]
[422189478,1778665857000,-257.204248,0.00039098,30]
[422189482,1778665857000,-257.20424,0.00039098,30]
[422189473,1778665857000,-419.650515,0.00039098,30]
[422189483,1778665857000,-151.0,0.00039098,30]
[422189475,1778665857000,-151.0,0.00039098,30]
[422189477,1778665857000,-151.0,0.00039098,30]
[422189474,1778665857000,-419.650516,0.00039098,30]
[422189481,1778665857000,-151.0,0.00039098,30]
[422189557,1778665858000,-190.97277275,0.00039635,2]
[422189555,1778665858000,-260.4913659,0.00039635,2]
[422189554,1778665858000,-194.35090821,0.00039635,2]
[422189539,1778665858000,-40395.0,0.00039621,120]
[422189553,1778665858000,-160.42258293,0.00039635,2]
[422189546,1778665858000,-152.52626673,0.00039635,2]
[422189548,1778665858000,-152.27703605,0.00039635,2]
[422189542,1778665858000,-160.0,0.00039635,2]
[422189544,1778665858000,-161.67826691,0.00039635,2]
[422189561,1778665858000,-202.03597522,0.00039647,2]
[422189552,1778665858000,-355.05020388,0.00039635,2]
[422189541,1778665858000,-160.63293144,0.00039635,2]
[422189556,1778665858000,-164.61642096,0.00039635,2]
[422189563,1778665858000,-181.27638785,0.00039653,2]
[422189558,1778665858000,-325.8167481,0.00039635,2]
[422189560,1778665858000,-193.09550621,0.00039647,2]
[422189559,1778665858000,-187.68094071,0.00039635,2]
[422189564,1778665858000,-150.0,0.00039669,2]
[422189567,1778665858000,-173.3864145,0.00039681,2]
[422189566,1778665858000,-160.6887855,0.00039681,2]
[422189568,1778665858000,-160.51670752,0.00039681,2]
[422189569,1778665858000,-189.0,0.00039691,11]
[422189571,1778665858000,-208.96,0.000397,120]
[422189543,1778665858000,-158.96032254,0.00039635,2]
[422189575,1778665858000,-182.28881612,0.0003972,2]
[422189562,1778665858000,-155.51792312,0.00039647,2]
[422189549,1778665858000,-155.89954892,0.00039635,2]
[422189530,1778665858000,-415.45,0.00039411,120]
[422189545,1778665858000,-160.49664054,0.00039635,2]
[422189572,1778665858000,-2374.0,0.00039704,11]
[422189522,1778665858000,-374.212742,0.0003936,30]
[422189524,1778665858000,-374.212751,0.0003936,30]
[422189523,1778665858000,-374.212742,0.0003936,30]
[422189519,1778665858000,-173.53539928,0.00039348,120]
[422189517,1778665858000,-164.0556012,0.00039322,120]
[422189520,1778665858000,-40395.0,0.0003936,120]
[422189518,1778665858000,-159.0818048,0.00039322,120]
[422189521,1778665858000,-374.212742,0.0003936,30]
[422189525,1778665858000,-290.336006,0.0003936,30]
[422189529,1778665858000,-2721.62,0.00039406,30]
[422189527,1778665858000,-290.336006,0.0003936,30]
[422189526,1778665858000,-290.336006,0.0003936,30]
[422189528,1778665858000,-290.336003,0.0003936,30]
[422189536,1778665858000,-40395.0,0.00039534,120]
[422189537,1778665858000,-157.72297697,0.00039587,3]
[422189538,1778665858000,-415.45,0.00039611,120]
[422189531,1778665858000,-40395.0,0.00039447,120]
[422189535,1778665858000,-151.52998992,0.0003953,60]
[422189532,1778665858000,-35815.04492194,0.0003949,2]
[422189534,1778665858000,-1639.04,0.00039514,120]
[422189533,1778665858000,-415.45,0.00039511,120]
[422189540,1778665858000,-155.85384168,0.00039635,110]
[422189550,1778665858000,-153.70030174,0.00039635,2]
[422189551,1778665858000,-154.18178364,0.00039635,2]
[422189547,1778665858000,-190.58422444,0.00039635,2]
[422189574,1778665858000,-415.45,0.00039711,120]
[422189624,1778665858000,-1639.04,0.00039839,120]
[422189570,1778665858000,-179.89574671,0.00039691,2]
[422189604,1778665858000,-500.0,0.00039726,15]
[422189603,1778665858000,-500.0,0.00039726,15]
[422189612,1778665858000,-1584.0,0.00039728,11]
[422189605,1778665858000,-500.0,0.00039726,15]
[422189608,1778665858000,-500.0,0.00039726,15]
[422189607,1778665858000,-500.0,0.00039726,15]
[422189609,1778665858000,-500.0,0.00039726,15]
[422189610,1778665858000,-540.21034263,0.00039726,15]
[422189611,1778665858000,-500.0,0.00039726,15]
[422189606,1778665858000,-500.0,0.00039726,15]
[422189616,1778665858000,-208.42886955,0.0003978,2]
[422189615,1778665858000,-759.82447879,0.0003978,2]
[422189617,1778665858000,-18693.59605216,0.0003978,2]
[422189626,1778665858000,-39959.57288434,0.0003988,39]
[422189618,1778665858000,-40395.0,0.00039795,120]
[422189621,1778665858000,-981.3682,0.00039827,30]
[422189623,1778665858000,-228.9,0.00039836,60]
[422189625,1778665858000,-157.72297697,0.00039861,3]
[422189620,1778665858000,-415.45,0.00039811,120]
[422189622,1778665858000,-768.58,0.00039836,60]
[422189565,1778665858000,-160.26291576,0.00039681,2]
[422189628,1778665858000,-2235774.84796366,0.0003988,30]
[422189627,1778665858000,-2640.18453583,0.0003988,120]
[422189629,1778665858000,-30000.0,0.0003988,2]
[422189630,1778665858000,-26840.36365787,0.0003988,10]
[422189613,1778665858000,-500.0,0.00039742,60]
[422189601,1778665858000,-500.0,0.00039726,15]
[422189619,1778665858000,-889.84500097,0.000398,30]
[422189602,1778665858000,-500.0,0.00039726,15]
[422189614,1778665858000,-157.57,0.0003975,120]
[422189573,1778665858000,-40395.0,0.00039708,120]
[422189577,1778665858000,-165.95230167,0.0003972,2]
[422189586,1778665858000,-169.11145862,0.0003972,2]
[422189587,1778665858000,-500.0,0.00039726,15]
[422189576,1778665858000,-197.94495994,0.0003972,2]
[422189579,1778665858000,-154.28449056,0.0003972,2]
[422189578,1778665858000,-152.7309979,0.0003972,2]
[422189580,1778665858000,-168.98179061,0.0003972,2]
[422189584,1778665858000,-171.97690867,0.0003972,2]
[422189581,1778665858000,-152.16764211,0.0003972,2]
[422189583,1778665858000,-158.59507513,0.0003972,2]
[422189582,1778665858000,-172.64694977,0.0003972,2]
[422189585,1778665858000,-153.52917932,0.0003972,2]
[422189590,1778665858000,-500.0,0.00039726,15]
[422189588,1778665858000,-500.0,0.00039726,15]
[422189595,1778665858000,-500.0,0.00039726,15]
[422189589,1778665858000,-500.0,0.00039726,15]
[422189596,1778665858000,-500.0,0.00039726,15]
[422189594,1778665858000,-500.0,0.00039726,15]
[422189592,1778665858000,-500.0,0.00039726,15]
[422189597,1778665858000,-500.0,0.00039726,15]
[422189598,1778665858000,-500.0,0.00039726,15]
[422189591,1778665858000,-500.0,0.00039726,15]
[422189593,1778665858000,-500.0,0.00039726,15]
[422189599,1778665858000,-500.0,0.00039726,15]
[422189600,1778665858000,-500.0,0.00039726,15]
[422189654,1778665859000,-396.44398711,0.0004,2]
[422189662,1778665859000,-213.79387096,0.0004,30]
[422189661,1778665859000,-514.81254316,0.0004,5]
[422189656,1778665859000,-4177.06213608,0.0004,2]
[422189664,1778665859000,-319.64171493,0.0004,2]
[422189657,1778665859000,-454.45236381,0.0004,120]
[422189659,1778665859000,-150.49641255,0.0004,120]
[422189658,1778665859000,-332.07946852,0.0004,2]
[422189660,1778665859000,-30544.4930499,0.0004,120]
[422189663,1778665859000,-202.89090682,0.0004,120]
[422189672,1778665859000,-500.0,0.0004,7]
[422189669,1778665859000,-200.0,0.0004,7]
[422189670,1778665859000,-245.77571807,0.0004,120]
[422189673,1778665859000,-510.43504673,0.0004,7]
[422189677,1778665859000,-300.0,0.0004,120]
[422189676,1778665859000,-156.0,0.0004,120]
[422189675,1778665859000,-152.0,0.0004,120]
[422189668,1778665859000,-610.37805399,0.0004,2]
[422189666,1778665859000,-10864.3720254,0.0004,2]
[422189678,1778665859000,-152.0,0.0004,30]
[422189667,1778665859000,-515.67909946,0.0004,2]
[422189665,1778665859000,-164.01832159,0.0004,2]
[422189641,1778665859000,-415.45,0.00039911,120]
[422189650,1778665859000,-393.87586637,0.0004,30]
[422189671,1778665859000,-500.0,0.0004,7]
[422189639,1778665859000,-1497.03,0.000399,120]
[422189638,1778665859000,-1497.03,0.000399,120]
[422189631,1778665859000,-65559.68163181,0.0003988,30]
[422189634,1778665859000,-3925.80634195,0.00039892,2]
[422189632,1778665859000,-40395.0,0.00039882,120]
[422189633,1778665859000,-164.41479921,0.0003989,2]
[422189635,1778665859000,-1339.33076319,0.000399,20]
[422189636,1778665859000,-15586.818655,0.000399,120]
[422189640,1778665859000,-2759.60336782,0.000399,30]
[422189644,1778665859000,-3079.13025834,0.00039999,2]
[422189643,1778665859000,-75417.76265207,0.0003997,2]
[422189652,1778665859000,-383.76373632,0.0004,120]
[422189647,1778665859000,-2100.28883973,0.0004,2]
[422189649,1778665859000,-496.513,0.0004,120]
[422189642,1778665859000,-40395.0,0.00039969,120]
[422189648,1778665859000,-24655.94070798,0.0004,5]
[422189651,1778665859000,-1925.3916693,0.0004,4]
[422189645,1778665859000,-50000.0,0.0004,38]
[422189646,1778665859000,-518.0,0.0004,120]
[422189653,1778665859000,-24140.66391029,0.0004,2]
[422189655,1778665859000,-1586.11003081,0.0004,2]
[422189679,1778665859000,-150.22455853,0.0004,120]
[422189637,1778665859000,-165.3,0.000399,120]
[422189681,1778665859000,-726.0,0.0004,5]
[422189707,1778665859000,-40395.0,0.00040056,120]
[422189709,1778665859000,-3541.0,0.00040078,2]
[422189708,1778665859000,-1175.747,0.00040078,2]
[422189710,1778665859000,-1223.0,0.00040078,2]
[422189706,1778665859000,-207.17094678,0.00040019,2]
[422189715,1778665859000,-165.16912315,0.00040117,2]
[422189716,1778665859000,-157.72297697,0.00040135,3]
[422189711,1778665859000,-23444.15,0.000401,2]
[422189713,1778665859000,-23444.15,0.000401,2]
[422189714,1778665859000,-415.45,0.00040111,120]
[422189712,1778665859000,-3034.84,0.000401,2]
[422189674,1778665859000,-1171.44,0.0004,120]
[422189718,1778665859000,-1639.04,0.00040165,120]
[422189723,1778665859000,-415.45,0.00040211,120]
[422189719,1778665859000,-1142.31653078,0.00040183,120]
[422189720,1778665859000,-23444.15,0.000402,2]
[422189722,1778665859000,-23444.15,0.000402,2]
[422189721,1778665859000,-3034.84,0.000402,2]
[422189724,1778665859000,-1000.0,0.00040216,120]
[422189725,1778665859000,-40395.0,0.0004023,120]
[422189726,1778665859000,-300.0,0.00040279,2]
[422189705,1778665859000,-163.0,0.00040011,11]
[422189704,1778665859000,-415.45,0.00040011,120]
[422189717,1778665859000,-40395.0,0.00040143,120]
[422189700,1778665859000,-266094.0,0.0004,30]
[422189691,1778665859000,-3000.0,0.0004,30]
[422189703,1778665859000,-152.0,0.0004,30]
[422189680,1778665859000,-6285.70465604,0.0004,120]
[422189682,1778665859000,-3872.8083494,0.0004,120]
[422189683,1778665859000,-158.0,0.0004,2]